bitfinex-derivatives/quotes_BNBF0:USTF0_20250211
["timestamp","ask_amount","ask_price","bid_price","bid_amount"]
[1739253634880,0.31315566,638.66,637.67,0.28794019]
[1739253635074,0.31315566,638.66,637.66,0.184]
[1739253635276,0.31315566,638.66,637.67,0.28791377]
[1739253635677,0.31315566,638.66,637.66,0.184]
[1739253635875,0.2601538,638.65,637.66,0.184]
[1739253636076,0.31317038,638.63,637.66,0.184]
[1739253636278,0.26019181,638.62,637.66,0.184]
[1739253636579,0.31318509,638.6,637.66,0.184]
[1739253636779,0.26019181,638.59,637.66,0.184]
[1739253637178,0.3131998,638.57,637.66,0.184]
[1739253637380,0.26019181,638.56,637.66,0.184]
[1739253637577,0.31321452,638.54,637.66,0.184]
[1739253639473,1.63628669,638.53,637.66,0.184]
[1739253639677,0.31322433,638.52,637.66,0.184]
[1739253645477,0.25975601,638.51,637.66,0.184]
[1739253648380,0.25953615,638.5,637.66,0.184]
[1739253648578,0.25953615,638.49,637.66,0.184]
[1739253648775,0.31324886,638.47,637.66,0.184]
[1739253649077,0.25953615,638.46,637.66,0.184]
[1739253649479,0.31325867,638.45,637.66,0.184]
[1739253649778,0.25953615,638.44,637.66,0.184]
[1739253650581,0.31326848,638.43,637.66,0.184]
[1739253650885,0.25953615,638.42,637.66,0.184]
[1739253651081,0.3132783,638.41,637.66,0.184]
[1739253651282,0.25953615,638.4,637.66,0.184]
[1739253651475,0.31328811,638.39,637.66,0.184]
[1739253651785,0.25953615,638.38,637.66,0.184]
[1739253651980,0.31329793,638.37,637.66,0.184]
[1739253652178,0.25953615,638.36,637.66,0.184]
[1739253652380,0.31330774,638.35,637.66,0.184]
[1739253652577,0.25953615,638.34,637.66,0.184]
[1739253652883,0.31331756,638.33,637.66,0.184]
[1739253653083,0.25953615,638.32,637.66,0.184]
[1739253653877,0.31331756,638.33,637.66,0.184]
[1739253654184,0.25956173,638.32,637.66,0.184]
[1739253654479,0.31332738,638.31,637.66,0.184]
[1739253660079,1.63731959,638.3,637.66,0.184]
[1739253660282,0.31333719,638.29,637.66,0.184]
[1739253667288,0.25949002,638.28,637.66,0.184]
[1739253667490,0.31333719,638.29,637.66,0.184]
[1739253670498,0.2596187,638.28,637.66,0.184]
[1739253670697,0.31334701,638.27,637.66,0.184]
[1739253677104,1.63619694,638.26,637.66,0.184]
[1739253678005,0.31334701,638.27,637.66,0.184]
[1739253680100,1.38844541,639.55,637.66,0.184]
[1739253680302,0.31272966,639.53,637.66,0.184]
[1739253680502,0.26038375,639.52,637.66,0.184]
[1739253680705,0.31274433,639.5,637.66,0.184]
[1739253680901,0.26038375,639.49,637.66,0.184]
[1739253681206,0.312759,639.47,637.66,0.184]
[1739253681407,0.26038375,639.46,637.66,0.184]
[1739253681601,0.26038375,639.45,637.66,0.184]
[1739253681807,0.26038375,639.44,637.66,0.184]
[1739253682001,0.26038375,639.43,637.66,0.184]
[1739253682201,0.57316721,639.42,637.67,0.28785931]
[1739253682404,0.26038375,639.41,637.67,0.28785931]
[1739253682606,0.31279813,639.39,637.67,0.28785931]
[1739253682907,0.26038375,639.38,637.68,0.28785931]
[1739253683107,0.31281281,639.36,637.08,1.15685216]
[1739253683305,0.26038375,639.35,637.1,0.31392246]
[1739253683501,0.31287153,639.24,637.11,0.9174793]
[1739253683705,0.26038375,639.23,637.12,1.37557562]
[1739253683900,0.31288621,639.21,637.14,0.31390275]
[1739253684109,0.26038375,639.2,637.15,0.9174793]
[1739253684303,0.3129009,639.18,637.17,0.31388797]
[1739253684502,0.26038375,639.17,637.18,0.9174793]
[1739253684705,0.31291559,639.15,637.2,0.31387319]
[1739253685005,0.26038375,639.14,637.21,0.9174793]
[1739253685207,0.26038375,639.14,637.23,0.31385841]
[1739253685208,0.31293027,639.12,637.23,0.31385841]
[1739253685404,0.26038375,639.11,637.24,0.9174793]
[1739253685606,0.26038375,639.11,637.31,1.15685216]
[1739253685801,0.26038375,639.11,637.32,0.9174793]
[1739253686106,0.26038375,639.11,637.33,0.28785931]
[1739253686306,0.26038375,639.11,637.34,0.28785931]
[1739253686504,0.26038375,639.11,637.35,0.60165863]
[1739253686705,0.26038375,639.11,637.36,0.9174793]
[1739253687004,0.26038375,639.11,637.37,0.28785931]
[1739253687311,0.31293027,639.12,637.35,0.31379932]
[1739253687504,0.2606805,639.11,637.36,0.28782508]
[1739253688106,0.2606805,639.11,637.36,0.62956508]
[1739253688309,0.2606805,639.11,637.36,0.91739016]
[1739253688504,0.2606805,639.11,637.37,0.47182508]
[1739253688704,0.31294496,639.09,637.38,0.60160963]
[1739253688904,0.2606805,639.08,637.39,0.28782508]
[1739253689110,0.2606805,639.08,637.4,0.3137747]
[1739253689410,0.31295965,639.06,637.41,0.28782508]
[1739253689709,0.2606805,639.05,637.42,0.31376486]
[1739253689909,0.31297435,639.03,637.43,0.28782508]
[1739253690107,0.2606805,639.02,637.44,0.31375502]
[1739253690306,0.2606805,639.02,637.45,0.28782508]
[1739253690506,0.31297435,639.03,637.46,0.31374517]
[1739253690707,0.26085451,639.02,637.47,0.28782508]
[1739253691104,0.26085451,639.02,637.48,0.31373533]
[1739253691310,0.26085451,639.02,637.49,0.28782508]
[1739253691506,0.31298904,639.0,637.49,0.28782508]
[1739253692210,1.63581238,638.99,637.49,0.28782508]
[1739253693106,1.63581238,638.99,637.5,0.28787837]
[1739253693311,0.26092011,638.98,637.51,0.28787837]
[1739253693508,0.26092011,638.98,637.52,0.28787837]
[1739253693712,0.26092011,638.98,637.49,0.28787837]
[1739253693908,0.26092011,638.98,637.5,0.28787837]
[1739253694112,0.26092011,638.98,637.49,0.28787837]
[1739253694306,0.26092011,638.98,637.5,0.28787837]
[1739253694511,0.31300863,638.96,637.49,0.28787837]
[1739253694812,0.31300863,638.96,637.48,0.31373533]
[1739253695014,0.31300863,638.96,637.49,0.28787733]
[1739253695214,0.26091818,638.95,637.49,0.28787733]
[1739253695412,0.31302333,638.93,637.49,0.28787733]
[1739253695913,0.26092376,638.92,637.49,0.28787733]
[1739253696514,0.31302333,638.93,637.48,0.31373533]
[1739253696714,0.26094774,638.92,637.49,0.28790685]
[1739253698916,0.31302333,638.93,637.5,0.2878844]
[1739253699116,0.31302333,638.93,637.49,0.2878844]
[1739253699314,0.31302333,638.93,637.5,0.2878844]
[1739253699508,0.31302333,638.93,637.49,0.2878844]
[1739253699714,0.31302333,638.93,637.5,0.2878844]
[1739253699915,0.31302333,638.93,637.49,0.2878844]
[1739253700115,0.31302333,638.93,637.5,0.28783831]
[1739253700417,0.31302333,638.93,637.51,0.28783831]
[1739253700612,0.31302333,638.93,637.49,0.28783831]
[1739253700811,0.31302333,638.93,637.5,0.28783831]
[1739253701015,0.31302333,638.93,637.49,0.28783831]
[1739253702217,0.2608752,638.92,637.49,0.28783831]
[1739253702619,0.31302333,638.93,637.49,0.28783831]
[1739253702819,0.31302333,638.93,637.5,0.184]
[1739253703120,0.31302333,638.93,637.51,0.28783831]
[1739253703418,0.31302333,638.93,637.52,0.31371564]
[1739253703614,0.31302333,638.93,637.53,0.28783831]
[1739253703819,0.31302333,638.93,637.54,0.3137058]
[1739253704019,0.31302333,638.93,637.55,0.28783831]
[1739253704219,0.31302333,638.93,637.56,0.31369596]
[1739253704422,0.31302333,638.93,637.57,0.28783831]
[1739253704915,0.31302333,638.93,637.58,0.31368612]
[1739253705122,0.31302333,638.93,637.59,0.28783831]
[1739253705315,0.31302333,638.93,637.6,0.31367628]
[1739253705520,0.31302333,638.93,637.61,0.28783831]
[1739253708615,0.31302333,638.93,637.62,0.31366644]
[1739253708819,0.31302333,638.93,637.63,0.28783831]
[1739253709015,0.31302333,638.93,637.64,0.3136566]
[1739253709220,0.31302333,638.93,637.65,0.28783831]
[1739253709821,0.31302333,638.93,637.66,0.31364677]
[1739253710023,0.31302333,638.93,637.67,0.91479243]
[1739253710322,0.31302333,638.93,637.68,0.31363693]
[1739253710621,0.31302333,638.93,637.69,0.91433554]
[1739253710819,0.31302333,638.93,637.7,0.31362709]
[1739253711019,0.31302333,638.93,637.71,0.91433554]
[1739253711216,0.31302333,638.93,637.72,0.60128917]
[1739253711521,1.38844541,640.22,637.73,1.22794788]
[1739253711822,0.31245117,640.1,637.75,0.3136025]
[1739253712317,0.26067975,640.09,637.76,0.91359001]
[1739253712515,1.38844541,640.22,637.76,0.91359001]
[1739253712516,0.31250976,639.98,637.77,0.60122764]
[1739253712719,0.26067975,639.97,637.78,1.22717776]
[1739253712926,0.31256348,639.87,637.79,1.22717285]
[1739253713225,0.26067975,639.86,637.8,1.22716793]
[1739253713424,0.26067975,639.86,637.81,0.28763497]
[1739253713624,0.26067975,639.86,637.8,0.31357792]
[1739253713818,0.31261723,639.76,637.81,0.91359001]
[1739253714024,0.26067975,639.75,637.82,0.31356809]
[1739253714224,0.31263189,639.73,637.83,0.91359001]
[1739253714419,0.26067975,639.72,637.84,0.31355825]
[1739253714622,0.31264655,639.7,637.85,0.28763497]
[1739253714825,0.26067975,639.69,637.86,0.31354842]
[1739253715026,0.31264655,639.7,637.87,0.28763497]
[1739253717024,0.31264655,639.7,637.88,0.31353859]
[1739253717227,0.31264655,639.7,637.89,0.28763497]
[1739253717420,0.31264655,639.7,637.9,0.31352876]
[1739253717624,0.31264655,639.7,637.91,0.28763497]
[1739253717827,0.31264655,639.7,637.92,0.31351893]
[1739253718026,0.31264655,639.7,637.93,0.28763497]
[1739253719930,0.31264655,639.7,637.94,0.3135091]
[1739253720127,0.31264655,639.7,637.95,0.28763497]
[1739253720325,0.31264655,639.7,637.94,0.3135091]
[1739253720326,0.31264655,639.7,637.96,0.31349927]
[1739253721125,0.31264655,639.7,637.97,0.28757885]
[1739253721326,0.26060006,639.69,637.97,0.28757885]
[1739253721629,0.31264655,639.7,637.98,0.28757885]
[1739253721825,0.31264655,639.7,637.99,0.28757885]
[1739253722026,0.31264655,639.7,638.01,0.31347471]
[1739253722430,0.31264655,639.7,638.02,0.28746828]
[1739253722732,0.31264655,639.7,638.04,0.31345997]
[1739253722931,0.31264655,639.7,638.05,0.28746828]
[1739253723131,0.31264655,639.7,638.07,0.31344523]
[1739253723331,0.31264655,639.7,638.08,0.28746828]
[1739253723527,0.31264655,639.7,638.1,0.31343049]
[1739253723730,0.31264655,639.7,638.11,0.28746828]
[1739253724530,0.31264655,639.7,638.12,0.31342067]
[1739253724727,0.31264655,639.7,638.13,0.28746828]
[1739253724931,0.31264655,639.7,638.14,0.31341085]
[1739253725132,0.31264655,639.7,638.15,0.28746828]
[1739253725330,0.31264655,639.7,638.16,0.31340102]
[1739253725530,0.31264655,639.7,638.17,0.28746828]
[1739253727226,0.26059254,639.69,638.17,0.28746828]
[1739253727632,0.31264655,639.7,638.17,0.28746828]
[1739253728032,0.26058975,639.69,638.17,0.28746828]
[1739253728231,0.31266121,639.67,638.17,0.28746828]
[1739253730537,0.26060302,639.66,638.17,0.28746828]
[1739253731834,0.31266121,639.67,638.17,0.28746828]
[1739253732035,0.31266121,639.67,638.17,0.47146828]
[1739253732231,0.31266121,639.67,638.18,0.28746828]
[1739253732437,0.31266121,639.67,638.19,0.31338629]
[1739253732638,0.31266121,639.67,638.2,0.28747669]
[1739253734039,0.31266121,639.67,638.21,0.31337647]
[1739253734239,0.31266121,639.67,638.22,0.28747669]
[1739253734940,1.38844541,640.74,638.24,0.31336174]
[1739253735132,0.31219755,640.62,638.25,0.9095337]
[1739253735335,0.26038508,640.61,638.26,0.28747669]
[1739253735533,0.26038508,640.61,638.27,0.28747669]
[1739253735739,0.26038508,640.61,638.28,0.28747669]
[1739253735935,0.26038508,640.61,638.3,0.31333228]
[1739253736242,0.31225604,640.5,638.31,0.9095337]
[1739253736444,0.26038508,640.49,638.32,0.28747669]
[1739253736638,0.26038508,640.49,638.33,0.28747669]
[1739253736840,0.26038508,640.49,638.34,0.28747669]
[1739253737037,0.26038508,640.49,638.36,0.31330283]
[1739253737237,0.26038508,640.49,638.37,0.9095337]
[1739253737942,0.31225604,640.5,638.38,0.28747669]
[1739253738140,0.31225604,640.5,638.39,0.28747669]
[1739253738338,0.31225604,640.5,638.4,0.28747669]
[1739253738538,0.31225604,640.5,638.41,0.28747669]
[1739253738741,0.31225604,640.5,638.42,0.28747669]
[1739253738942,0.31225604,640.5,638.43,0.28747669]
[1739253739143,0.31225604,640.5,638.44,0.28747669]
[1739253739346,0.31225604,640.5,638.45,0.28747669]
[1739253739644,0.31225604,640.5,638.37,0.62205701]
[1739253739645,0.31225604,640.5,638.46,0.28747669]
[1739253739845,0.31225604,640.5,638.47,0.28747669]
[1739253740044,0.31225604,640.5,638.48,0.28747669]
[1739253740243,0.31225604,640.5,638.49,0.28747669]
[1739253740442,0.31225604,640.5,638.59,0.31318999]
[1739253740643,0.31225604,640.5,638.6,0.9095337]
[1739253740843,0.31225604,640.5,638.62,0.31317528]
[1739253741144,0.31225604,640.5,638.63,0.28747669]
[1739253741345,0.31225604,640.5,638.65,0.31316057]
[1739253741539,0.31225604,640.5,638.66,0.28721856]
[1739253742245,0.31225604,640.5,638.67,0.31315076]
[1739253742444,0.31225604,640.5,638.68,0.28721856]
[1739253742845,0.31225604,640.5,638.69,0.31314096]
[1739253743044,0.31225604,640.5,638.7,0.28721856]
[1739253743246,0.31225604,640.5,638.72,0.31312625]
[1739253743446,0.31225604,640.5,638.73,0.28721856]
[1739253744141,0.31225604,640.5,638.74,0.31311644]
[1739253744347,0.31225604,640.5,638.75,0.28721856]
[1739253744546,0.31225604,640.5,638.76,0.31310664]
[1739253744748,0.31225604,640.5,639.53,0.745]
[1739253745750,1.63188108,640.49,639.53,0.745]
[1739253746448,0.31227067,640.47,639.53,0.745]
[1739253751851,0.31227067,640.47,639.52,1.356]
[1739253755656,0.26026056,640.46,639.52,1.356]
[1739253756460,0.26026056,640.46,639.69,0.54]
[1739253756653,0.31228042,640.45,639.69,0.54]
[1739253756856,0.26026056,640.44,639.69,0.54]
[1739253757055,0.31229018,640.43,639.69,0.54]
[1739253762061,1.63110983,640.42,639.69,0.54]
[1739253762562,0.31229993,640.41,639.69,0.54]
[1739253765564,0.31229993,640.41,639.52,1.356]
[1739253765860,0.260341,640.4,639.69,0.783]
[1739253766260,0.26038165,640.39,639.69,0.783]
[1739253766463,0.26038165,640.38,639.69,0.783]
[1739253766663,0.26038165,640.37,639.69,0.783]
[1739253766860,0.26038165,640.4,639.69,0.783]
[1739253767062,0.26038165,640.39,639.69,0.783]
[1739253767261,0.26038165,640.4,639.69,0.783]
[1739253767464,0.26038165,640.39,639.69,0.783]
[1739253767670,0.26038165,640.4,639.69,0.783]
[1739253767865,0.31229993,640.41,639.96,0.588]
[1739253768065,0.26038321,640.4,639.96,0.588]
[1739253768767,0.31230968,640.39,639.96,0.588]
[1739253768967,0.26038321,640.38,639.96,0.588]
[1739253769363,0.26038321,640.38,639.96,1.276]
[1739253769364,0.31231944,640.37,639.96,1.276]
[1739253769765,0.26031681,640.36,639.96,1.276]
[1739253770065,0.31232919,640.35,639.96,1.276]
[1739253770261,0.26033504,640.34,639.96,1.276]
[1739253770465,0.31233895,640.33,639.96,1.276]
[1739253770668,0.26033504,640.32,639.96,1.276]
[1739253770967,0.3123487,640.31,639.96,1.276]
[1739253772366,1.63198312,640.3,639.96,1.276]
[1739253773369,0.26037855,640.29,639.96,1.276]
[1739253774169,0.31236334,640.28,639.96,1.276]
[1739253774372,0.26037855,640.27,639.96,1.276]
[1739253775070,0.5727425,640.26,639.96,1.276]
[1739253775266,0.57274738,640.25,639.96,1.276]
[1739253775470,0.57275226,640.24,639.96,2.019]
[1739253775671,0.57275714,640.23,639.96,2.019]
[1739253775970,0.57276202,640.22,639.96,2.019]
[1739253776170,0.5727669,640.21,639.96,2.019]
[1739253776370,0.57277178,640.2,639.96,2.019]
[1739253776571,0.57277666,640.19,639.96,2.019]
[1739253776771,0.57278154,640.18,639.96,2.019]
[1739253776973,0.57278642,640.17,639.96,2.019]
[1739253777169,0.31242189,640.16,639.96,2.019]
[1739253777567,0.26035512,640.15,639.96,2.019]
[1739253777769,0.31243165,640.14,639.96,2.019]
[1739253777972,0.31243165,640.14,639.96,1.431]
[1739253778572,0.26035573,640.13,639.96,2.17]
[1739253778767,0.31244141,640.12,639.96,2.17]
[1739253782468,1.63208517,640.11,640.09,0.529]
[1739253782870,0.31245117,640.1,640.09,0.529]
[1739253784968,0.57281296,640.1,640.09,0.529]
[1739253785773,0.31245117,640.1,640.09,0.529]
[1739253789675,0.31245117,640.1,640.0,0.826]
[1739253791079,0.31245117,640.1,640.0,1.558]
[1739253794980,0.31245117,640.1,640.0,2.398]
[1739253795780,0.31245117,640.1,640.0,2.999]
[1739253798682,0.31245117,640.1,640.0,3.421]
[1739253800383,0.31245117,640.1,640.0,4.096]
[1739253804689,1.38844541,641.08,640.1,0.35754883]
[1739253804889,0.31198327,641.06,640.1,0.35754883]
[1739253805290,0.26032937,641.05,640.1,0.35754883]
[1739253805488,0.26032937,641.04,640.1,0.35754883]
[1739253805684,0.26032937,641.03,640.1,0.35754883]
[1739253805884,0.31198327,641.06,640.1,0.35754883]
[1739253805885,0.26032937,641.02,640.1,0.35754883]
[1739253806087,0.31201248,641.0,640.1,0.35754883]
[1739253806290,0.26032937,640.99,640.1,0.35754883]
[1739253806490,0.31202708,640.97,640.1,0.35754883]
[1739253806689,0.26032937,640.96,640.1,0.35754883]
[1739253806889,0.26032937,640.95,640.1,0.35754883]
[1739253807090,0.57237105,640.94,640.1,0.35754883]
[1739253807290,0.26032937,640.93,640.1,0.35754883]
[1739253807486,0.31205629,640.91,640.1,0.35754883]
[1739253807891,0.26033941,640.9,640.1,1.10054883]
[1739253808091,0.31206603,640.89,640.1,1.10054883]
[1739253808291,0.26031158,640.88,640.1,1.65154883]
[1739253808591,0.31207577,640.87,640.1,1.65154883]
[1739253808790,0.26031158,640.86,640.1,1.65154883]
[1739253809093,0.26031158,640.85,640.1,1.65154883]
[1739253809390,0.26031158,640.84,640.1,1.294]
[1739253809691,0.26031158,640.83,640.1,1.294]
[1739253809991,0.31210012,640.82,640.1,1.294]
[1739253810190,0.5724308,640.82,640.1,1.294]
[1739253810391,0.26033068,640.81,640.1,1.294]
[1739253810588,0.31210986,640.8,640.1,1.294]
[1739253810793,0.26033068,640.79,640.1,1.294]
[1739253811988,0.3121196,640.78,640.1,1.294]
[1739253812293,0.26033068,640.77,640.1,1.294]
[1739253812493,0.31212934,640.76,640.1,1.294]
[1739253812691,0.26033068,640.75,640.1,1.294]
[1739253812993,0.31213908,640.74,640.1,1.294]
[1739253813192,0.26033068,640.73,640.1,1.294]
[1739253814293,0.31214883,640.72,640.1,1.294]
[1739253814492,0.26033068,640.71,640.1,1.294]
[1739253814691,0.31215857,640.7,640.1,1.294]
[1739253814885,0.26033068,640.69,640.1,1.294]
[1739253815086,0.31216832,640.68,640.1,1.294]
[1739253815290,0.26033068,640.67,640.1,1.294]
[1739253815486,0.31217806,640.66,640.1,1.294]
[1739253815689,0.26033068,640.65,640.1,1.294]
[1739253815987,0.31218781,640.64,640.1,1.294]
[1739253816193,0.26033068,640.63,640.1,1.294]
[1739253816392,0.31219755,640.62,640.1,1.294]
[1739253816591,0.26033068,640.61,640.1,1.294]
[1739253816793,0.3122073,640.6,640.1,1.294]
[1739253816992,0.26033068,640.59,640.1,1.294]
[1739253817292,0.31221705,640.58,640.1,1.294]
[1739253817492,0.26033271,640.57,640.1,1.294]
[1739253817792,0.3122268,640.56,640.1,1.294]
[1739253818092,0.26033271,640.55,640.1,1.294]
[1739253818293,0.31223655,640.54,640.1,1.294]
[1739253818492,0.26033271,640.53,640.1,1.294]
[1739253818793,0.31224629,640.52,640.1,1.294]
[1739253819186,0.26033547,640.51,640.1,1.294]
[1739253819386,1.89203801,640.51,640.1,1.294]
[1739253819591,0.26033547,640.5,640.1,1.294]
[1739253819989,0.57259151,640.5,640.1,1.294]
[1739253820195,0.26033547,640.49,640.1,1.294]
[1739253820388,0.3122658,640.48,640.1,1.294]
[1739253820593,0.26033547,640.47,640.1,1.294]
[1739253820788,0.31227555,640.46,640.1,1.294]
[1739253820994,0.26041758,640.45,640.1,1.294]
[1739253821794,0.3122853,640.44,640.1,1.294]
[1739253822090,0.26041758,640.43,640.1,1.294]
[1739253822290,0.31229505,640.42,640.1,1.294]
[1739253822490,0.26041758,640.41,640.1,1.294]
[1739253822690,0.3123048,640.4,640.1,1.294]
[1739253822890,0.26041758,640.39,640.1,1.294]
[1739253823093,0.31231456,640.38,640.1,1.294]
[1739253823297,0.26041758,640.37,640.1,1.294]
[1739253823494,0.31232431,640.36,640.1,1.294]
[1739253823699,0.26041758,640.35,640.1,1.294]
[1739253823899,0.31233407,640.34,640.1,1.294]
[1739253824099,0.26041758,640.33,640.1,1.294]
[1739253824400,0.31234382,640.32,640.1,1.294]
[1739253824599,0.26041758,640.31,640.1,1.294]
[1739253824800,0.31235358,640.3,640.1,1.294]
[1739253824999,0.26041758,640.29,640.1,1.294]
[1739253825298,0.31236334,640.28,640.1,1.294]
[1739253825599,0.26041758,640.27,640.1,1.294]
[1739253825899,0.31237309,640.26,640.1,1.294]
[1739253826300,0.26044755,640.25,640.1,1.294]
[1739253826501,0.31238285,640.24,640.1,1.294]
[1739253826695,0.26044755,640.23,640.1,1.294]
[1739253826900,0.31239261,640.22,640.1,1.294]
[1739253827101,0.26044755,640.21,640.1,1.294]
[1739253827303,0.31240237,640.2,640.1,0.743]
[1739253827501,0.26044755,640.19,640.1,0.743]
[1739253827701,0.31241213,640.18,640.1,0.743]
[1739253827901,0.26044755,640.17,640.0,0.732]
[1739253828101,0.31242189,640.16,640.0,0.732]
[1739253828301,0.26044755,640.15,640.0,0.732]
[1739253828501,0.31243165,640.14,640.0,1.421]
[1739253828702,0.26044755,640.13,640.0,1.421]
[1739253828899,0.31244141,640.12,640.0,1.421]
[1739253829099,0.26044755,640.11,640.0,1.421]
[1739253829601,0.31245117,640.1,640.0,1.421]
[1739253829794,0.26044755,640.09,640.0,1.421]
[1739253829994,0.31246094,640.08,640.0,1.421]
[1739253830201,0.26044755,640.07,640.0,1.421]
[1739253830401,0.3124707,640.06,640.0,1.421]
[1739253830603,0.26044755,640.05,640.0,1.421]
[1739253830899,0.31248046,640.04,640.0,1.421]
[1739253832201,0.26043763,640.03,640.0,1.421]
[1739253832402,0.31249023,640.02,640.0,1.421]
[1739253832600,0.26043763,640.01,640.0,1.421]
[1739253833001,0.31249023,640.02,640.0,1.421]
[1739253833598,0.26041737,640.01,640.0,1.421]
[1739253833802,0.57291248,640.01,640.0,1.421]
[1739253836002,1.38844541,640.84,640.0,1.421]
[1739253836202,0.31210012,640.82,640.0,1.421]
[1739253836406,0.26021689,640.81,640.0,1.421]
[1739253836603,0.31211473,640.79,640.0,1.421]
[1739253836808,0.26021689,640.78,640.0,1.421]
[1739253837001,0.31212447,640.77,640.0,1.421]
[1739253837202,0.26021689,640.76,640.0,1.421]
[1739253837401,0.31213421,640.75,640.0,1.421]
[1739253837607,0.26021689,640.74,640.0,1.421]
[1739253837808,0.31214396,640.73,640.0,1.421]
[1739253838008,0.26021689,640.72,640.0,1.421]
[1739253838205,0.3121537,640.71,640.0,1.421]
[1739253838408,0.26021689,640.7,640.0,1.421]
[1739253838604,0.31216344,640.69,640.0,1.421]
[1739253838809,0.26021689,640.68,640.0,1.421]
[1739253839209,0.31217319,640.67,640.0,1.421]
[1739253839405,0.26021689,640.66,640.0,1.421]
[1739253839709,0.31218293,640.65,640.0,1.421]
[1739253839909,0.26021689,640.64,640.0,1.421]
[1739253840109,0.31219268,640.63,640.0,1.421]
[1739253840303,0.26021689,640.62,640.0,1.421]
[1739253840503,0.57240321,640.61,640.0,1.421]
[1739253840708,0.57240808,640.6,640.0,1.421]
[1739253840908,0.57241295,640.59,640.0,2.269]
[1739253841207,0.57241783,640.58,640.0,2.269]
[1739253841408,0.26020078,640.57,640.0,2.269]
[1739253841610,0.5724227,640.57,640.0,2.269]
[1739253841911,0.26021391,640.56,640.0,2.269]
[1739253842303,0.31223167,640.55,640.0,2.269]
[1739253842507,0.26021391,640.54,640.0,2.269]
[1739253842707,0.31224142,640.53,640.0,2.269]
[1739253842905,0.26021391,640.52,640.0,2.269]
[1739253843107,0.31225117,640.51,640.0,2.269]
[1739253843308,0.26021391,640.5,640.0,2.269]
[1739253843503,0.31226092,640.49,640.0,2.269]
[1739253843710,0.26021391,640.48,640.0,3.062]
[1739253843910,0.31227067,640.47,640.0,3.062]
[1739253844106,0.26021391,640.46,640.0,3.062]
[1739253844908,0.31228042,640.45,640.0,3.062]
[1739253845104,0.26021391,640.44,640.0,3.062]
[1739253845307,0.31229018,640.43,640.0,3.062]
[1739253845814,0.2602208,640.42,640.0,3.062]
[1739253846110,0.31229993,640.41,640.0,3.062]
[1739253846312,0.2602208,640.4,640.0,3.062]
[1739253846512,0.31230968,640.39,640.0,3.062]
[1739253846711,0.2602208,640.38,640.0,3.062]
[1739253847109,0.260261,640.37,640.0,3.062]
[1739253847310,0.260261,640.38,640.0,3.062]
[1739253847507,0.260261,640.37,640.0,3.062]
[1739253847714,0.260261,640.38,640.0,3.062]
[1739253847915,0.31231944,640.37,640.0,3.062]
[1739253848216,0.260261,640.36,640.0,3.062]
[1739253848715,0.31232919,640.35,640.0,3.062]
[1739253848915,0.260261,640.34,640.0,3.062]
[1739253849117,0.31233895,640.33,640.0,3.062]
[1739253850210,1.63161966,640.32,640.0,3.062]
[1739253850616,0.3123487,640.31,640.0,3.062]
[1739253855218,0.3123487,640.31,640.3,0.553]
[1739253864626,0.57260443,640.31,640.3,0.553]
[1739253864828,0.3123487,640.31,640.3,0.553]
[1739253865223,0.57260189,640.31,640.3,0.553]
[1739253866425,0.3123487,640.31,640.3,0.553]
[1739253866624,0.57260803,640.31,640.3,0.553]
[1739253868222,0.3123487,640.31,640.3,0.553]
[1739253868429,0.57261041,640.31,640.3,0.553]
[1739253869925,0.3123487,640.31,640.3,0.553]
[1739253870123,0.57262087,640.31,640.3,0.553]
[1739253870328,0.3123487,640.31,640.3,0.553]
[1739253886335,0.57263315,640.31,640.3,0.553]
[1739253887435,0.3123487,640.31,640.3,0.553]
[1739253887631,0.5726455,640.31,640.3,0.553]
[1739253887936,0.3123487,640.31,640.3,0.553]
[1739253890430,0.57265869,640.31,640.3,0.553]
[1739253890631,0.3123487,640.31,640.3,0.553]
[1739253890835,0.57261703,640.31,640.3,0.553]
[1739253892637,0.3123487,640.31,640.3,0.553]
[1739253892837,0.57261606,640.31,640.3,0.553]
[1739253897737,0.3123487,640.31,640.3,0.553]
[1739253897936,0.5726543,640.31,640.3,0.553]
[1739253899643,0.57264137,640.31,640.3,0.553]
[1739253901241,2.2044268,640.31,640.3,0.553]